[Event "Early-Titled-Tuesday-Blitz-September-26-2023"]
[Site "Chess.com"]
[Date "2023.09.26"]
[Round "3"]
[White "ChessArchitect64"]
[Black "JoseRemolar"]
[Result "0-1"]
[WhiteElo "2241"]
[BlackElo "2421"]
[TimeControl "180+1"]
[EndTime "8:28:39 PDT"]
[Termination "JoseRemolar won by resignation"]

1. d4 {[%clk 0:02:59.6]} 1... g6 {[%clk 0:02:58.2]} 2. c4 {[%clk 0:02:59.2]}
2... Bg7 {[%clk 0:02:58.7]} 3. Nc3 {[%clk 0:02:55.4]} 3... d6 {[%clk 0:02:59.2]}
4. e4 {[%clk 0:02:54.9]} 4... Nc6 {[%clk 0:02:59.1]} 5. Nge2 {[%clk 0:02:49.3]}
5... e5 {[%clk 0:02:57.7]} 6. d5 {[%clk 0:02:46.5]} 6... Nce7 {[%clk 0:02:57]}
7. Be3 {[%clk 0:02:45.6]} 7... f5 {[%clk 0:02:56.3]} 8. f3 {[%clk 0:02:45.7]}
8... Nf6 {[%clk 0:02:56.2]} 9. Qd2 {[%clk 0:02:44.4]} 9... fxe4 {[%clk
0:02:46.7]} 10. Nxe4 {[%clk 0:02:35.9]} 10... Nf5 {[%clk 0:02:44.4]} 11. Bg5
{[%clk 0:02:30.6]} 11... O-O {[%clk 0:02:13.6]} 12. Nxf6+ {[%clk 0:02:16.7]}
12... Bxf6 {[%clk 0:02:13]} 13. Bxf6 {[%clk 0:02:16.8]} 13... Qxf6 {[%clk
0:02:13.7]} 14. O-O-O {[%clk 0:02:15.7]} 14... Bd7 {[%clk 0:02:00.4]} 15. Nc3
{[%clk 0:02:11.3]} 15... Nd4 {[%clk 0:01:58.6]} 16. Bd3 {[%clk 0:02:07.1]} 16...
a6 {[%clk 0:01:44.3]} 17. Ne4 {[%clk 0:01:47]} 17... Qf4 {[%clk 0:01:34.6]} 18.
Qxf4 {[%clk 0:01:42.5]} 18... exf4 {[%clk 0:01:31]} 19. Rhe1 {[%clk 0:01:35.8]}
19... Rae8 {[%clk 0:01:28.3]} 20. Bb1 {[%clk 0:01:08]} 20... Nf5 {[%clk
0:01:25.7]} 21. Rd2 {[%clk 0:00:52]} 21... Ne3 {[%clk 0:01:19.1]} 22. b3 {[%clk
0:00:24.2]} 22... Nf5 {[%clk 0:00:54.1]} 23. g3 {[%clk 0:00:13.3]} 23... fxg3
{[%clk 0:00:52.2]} 24. hxg3 {[%clk 0:00:14.2]} 24... c6 {[%clk 0:00:49.8]} 25.
dxc6 {[%clk 0:00:13.3]} 25... Bxc6 {[%clk 0:00:50.7]} 26. g4 {[%clk 0:00:07.3]}
26... Nh4 {[%clk 0:00:50.9]} 27. Re3 {[%clk 0:00:03.4]} 27... Nxf3 {[%clk
0:00:49]} 28. Rf2 {[%clk 0:00:03]} 28... Bxe4 {[%clk 0:00:41.5]} 29. Rxe4 {[%clk
0:00:03.6]} 29... Rxe4 {[%clk 0:00:40.6]} 30. Bxe4 {[%clk 0:00:04.5]} 30... Ne5
{[%clk 0:00:40.6]} 31. Rxf8+ {[%clk 0:00:04.2]} 31... Kxf8 {[%clk 0:00:41.5]}
32. Bxb7 {[%clk 0:00:05]} 32... a5 {[%clk 0:00:32.2]} 33. g5 {[%clk 0:00:02.2]}
33... Nf7 {[%clk 0:00:30.5]} 34. Kb2 {[%clk 0:00:01.1]} 34... Nxg5 {[%clk
0:00:31]} 35. Ka3 {[%clk 0:00:01.9]} 35... h5 {[%clk 0:00:31.5]} 36. Ka4 {[%clk
0:00:02.8]} 36... h4 {[%clk 0:00:30.3]} 37. Kxa5 {[%clk 0:00:03.7]} 37... h3
{[%clk 0:00:27.4]} 38. Kb6 {[%clk 0:00:04.3]} 38... Ne6 {[%clk 0:00:24.8]} 39.
a4 {[%clk 0:00:04.1]} 39... Nc5 {[%clk 0:00:25.1]} 40. Bd5 {[%clk 0:00:03.1]}
40... Nxb3 {[%clk 0:00:25.2]} 41. a5 {[%clk 0:00:03.7]} 41... Nxa5 {[%clk
0:00:25.6]} 42. Kxa5 {[%clk 0:00:04.6]} 42... Ke7 {[%clk 0:00:25.9]} 43. Kb6
{[%clk 0:00:05.1]} 43... Kf6 {[%clk 0:00:26.1]} 44. Kc7 {[%clk 0:00:05.3]} 44...
Ke5 {[%clk 0:00:26.5]} 45. Kc6 {[%clk 0:00:05.8]} 45... g5 {[%clk 0:00:27.1]}
46. Kd7 {[%clk 0:00:06.1]} 46... g4 {[%clk 0:00:27.2]} 47. Kc6 {[%clk
0:00:06.2]} 47... g3 {[%clk 0:00:27.3]} 48. c5 {[%clk 0:00:04.3]} 48... dxc5
{[%clk 0:00:28.2]} 49. Kxc5 {[%clk 0:00:03.9]} 49... g2 {[%clk 0:00:28.4]} 50.
Bxg2 {[%clk 0:00:04.6]} 50... hxg2 {[%clk 0:00:29.3]} 0-1

[Event "Early-Titled-Tuesday-Blitz-September-26-2023"]
[Site "Chess.com"]
[Date "2023.09.26"]
[Round "3"]
[White "LoydBlankenship"]
[Black "jraosam"]
[Result "1-0"]
[WhiteElo "2639"]
[BlackElo "2050"]
[TimeControl "180+1"]
[EndTime "8:28:43 PDT"]
[Termination "LoydBlankenship won on time"]

1. e4 {[%clk 0:02:56.3]} 1... e6 {[%clk 0:02:58.9]} 2. d4 {[%clk 0:02:55.3]}
2... d5 {[%clk 0:02:59.3]} 3. Nc3 {[%clk 0:02:55.9]} 3... dxe4 {[%clk
0:02:59.2]} 4. Nxe4 {[%clk 0:02:56]} 4... Nd7 {[%clk 0:02:59.6]} 5. Bd3 {[%clk
0:02:55.5]} 5... Ngf6 {[%clk 0:02:58.7]} 6. Bg5 {[%clk 0:02:55.9]} 6... Be7
{[%clk 0:02:54.3]} 7. Bxf6 {[%clk 0:02:56]} 7... Nxf6 {[%clk 0:02:50.3]} 8. Nf3
{[%clk 0:02:56.5]} 8... b6 {[%clk 0:02:46.4]} 9. Nxf6+ {[%clk 0:02:52.9]} 9...
Bxf6 {[%clk 0:02:45.6]} 10. Be4 {[%clk 0:02:49.8]} 10... Rb8 {[%clk 0:02:40.5]}
11. Qd3 {[%clk 0:02:40]} 11... Bb7 {[%clk 0:02:32.6]} 12. Bxb7 {[%clk
0:02:38.8]} 12... Rxb7 {[%clk 0:02:33.5]} 13. O-O-O {[%clk 0:02:37.7]} 13... c5
{[%clk 0:02:27.4]} 14. dxc5 {[%clk 0:02:28.3]} 14... Qxd3 {[%clk 0:02:26.2]} 15.
Rxd3 {[%clk 0:02:20.7]} 15... bxc5 {[%clk 0:02:26.4]} 16. c3 {[%clk 0:02:07.4]}
16... Rd7 {[%clk 0:02:25.2]} 17. Rhd1 {[%clk 0:02:06.1]} 17... Rxd3 {[%clk
0:02:24.4]} 18. Rxd3 {[%clk 0:02:07]} 18... Ke7 {[%clk 0:02:23.2]} 19. Kc2
{[%clk 0:02:06.4]} 19... c4 {[%clk 0:02:19.2]} 20. Re3 {[%clk 0:02:04.8]} 20...
Rd8 {[%clk 0:02:19.1]} 21. Re4 {[%clk 0:02:04.5]} 21... Rc8 {[%clk 0:02:18.5]}
22. Nd2 {[%clk 0:02:04.3]} 22... Rd8 {[%clk 0:02:08.6]} 23. Rxc4 {[%clk
0:02:00.8]} 23... Be5 {[%clk 0:01:58.8]} 24. h3 {[%clk 0:01:54.1]} 24... f5
{[%clk 0:01:52.7]} 25. Ra4 {[%clk 0:01:52.8]} 25... Rd7 {[%clk 0:01:51.3]} 26.
Nc4 {[%clk 0:01:53.4]} 26... Bb8 {[%clk 0:01:43.2]} 27. Na5 {[%clk 0:01:52.3]}
27... Rc7 {[%clk 0:01:17.8]} 28. Rb4 {[%clk 0:01:40.3]} 28... Rc5 {[%clk
0:01:17.6]} 29. Nb3 {[%clk 0:01:20.6]} 29... Rc8 {[%clk 0:01:16.4]} 30. Nd4
{[%clk 0:01:20.8]} 30... Bd6 {[%clk 0:01:08.2]} 31. Ra4 {[%clk 0:01:17.6]} 31...
Bc5 {[%clk 0:01:06.5]} 32. f4 {[%clk 0:01:14.5]} 32... Bxd4 {[%clk 0:01:03.8]}
33. Rxd4 {[%clk 0:01:15.4]} 33... Rc7 {[%clk 0:01:00.5]} 34. b4 {[%clk
0:01:14.6]} 34... Kf6 {[%clk 0:01:00.8]} 35. a4 {[%clk 0:01:12.9]} 35... h6
{[%clk 0:01:00.1]} 36. Kd3 {[%clk 0:01:11.8]} 36... g5 {[%clk 0:01:00.1]} 37. g3
{[%clk 0:01:11.7]} 37... gxf4 {[%clk 0:00:55.3]} 38. gxf4 {[%clk 0:01:12.6]}
38... Rg7 {[%clk 0:00:55.1]} 39. Kc4 {[%clk 0:01:08.4]} 39... Rc7+ {[%clk
0:00:53.6]} 40. Kb3 {[%clk 0:01:08]} 40... Rg7 {[%clk 0:00:52.3]} 41. b5 {[%clk
0:01:06.1]} 41... Rg3 {[%clk 0:00:50.7]} 42. a5 {[%clk 0:01:05.7]} 42... Rxh3
{[%clk 0:00:36.9]} 43. Rd7 {[%clk 0:01:04.9]} 43... Rh1 {[%clk 0:00:27.1]} 44.
Rxa7 {[%clk 0:00:59.6]} 44... h5 {[%clk 0:00:26.5]} 45. Rd7 {[%clk 0:00:49]}
45... h4 {[%clk 0:00:23.8]} 46. a6 {[%clk 0:00:48.1]} 46... h3 {[%clk
0:00:22.1]} 47. Kc4 {[%clk 0:00:48]} 47... Rf1 {[%clk 0:00:16.3]} 48. Rd2 {[%clk
0:00:45.6]} 48... Rxf4+ {[%clk 0:00:15.9]} 49. Kc5 {[%clk 0:00:46]} 49... Rf3
{[%clk 0:00:14.8]} 50. c4 {[%clk 0:00:45.8]} 50... Rg3 {[%clk 0:00:09.8]} 51. a7
{[%clk 0:00:45.5]} 51... Rg2 {[%clk 0:00:09.6]} 52. Rd1 {[%clk 0:00:45.8]} 52...
Rg8 {[%clk 0:00:06.6]} 53. b6 {[%clk 0:00:45.6]} 53... e5 {[%clk 0:00:04.8]} 54.
b7 {[%clk 0:00:45.4]} 54... e4 {[%clk 0:00:02.3]} 55. b8=Q {[%clk 0:00:45.7]}
55... Rxb8 {[%clk 0:00:02.8]} 56. axb8=Q {[%clk 0:00:46.6]} 1-0

[Event "Early-Titled-Tuesday-Blitz-September-26-2023"]
[Site "Chess.com"]
[Date "2023.09.26"]
[Round "3"]
[White "vishwa_vijeta"]
[Black "Zohid6"]
[Result "0-1"]
[WhiteElo "2544"]
[BlackElo "2780"]
[TimeControl "180+1"]
[EndTime "8:28:44 PDT"]
[Termination "Zohid6 won by resignation"]

1. e4 {[%clk 0:02:52.3]} 1... e6 {[%clk 0:02:58.1]} 2. d4 {[%clk 0:02:47.8]}
2... d5 {[%clk 0:02:55.5]} 3. e5 {[%clk 0:02:37.5]} 3... c5 {[%clk 0:02:55.8]}
4. c3 {[%clk 0:02:32.2]} 4... Nc6 {[%clk 0:02:55.9]} 5. f4 {[%clk 0:02:27.9]}
5... Qb6 {[%clk 0:02:51.3]} 6. Nf3 {[%clk 0:02:27.1]} 6... f6 {[%clk 0:02:51.1]}
7. Be2 {[%clk 0:02:25]} 7... Nge7 {[%clk 0:02:47.6]} 8. O-O {[%clk 0:02:24.5]}
8... cxd4 {[%clk 0:02:47.8]} 9. cxd4 {[%clk 0:02:24.1]} 9... Nf5 {[%clk
0:02:48.4]} 10. exf6 {[%clk 0:02:24.3]} 10... gxf6 {[%clk 0:02:48.4]} 11. Kh1
{[%clk 0:02:19.8]} 11... Bd7 {[%clk 0:02:40.3]} 12. Nc3 {[%clk 0:01:45]} 12...
Ncxd4 {[%clk 0:02:39.6]} 13. Nxd4 {[%clk 0:01:43.8]} 13... Qxd4 {[%clk
0:02:40.5]} 14. Bh5+ {[%clk 0:01:43.7]} 14... Kd8 {[%clk 0:02:40.6]} 15. Qe1
{[%clk 0:01:41.6]} 15... Bc5 {[%clk 0:02:29.7]} 16. Bd2 {[%clk 0:01:37.1]} 16...
Rc8 {[%clk 0:02:26.5]} 17. Rd1 {[%clk 0:01:36.1]} 17... Qc4 {[%clk 0:02:04.9]}
18. Be2 {[%clk 0:01:29.6]} 18... Qd4 {[%clk 0:01:48.2]} 19. Nxd5 {[%clk
0:01:25.8]} 19... Qxd5 {[%clk 0:01:24.4]} 20. Ba5+ {[%clk 0:01:25.5]} 20... b6
{[%clk 0:01:25.3]} 21. Rxd5 {[%clk 0:01:25.3]} 21... exd5 {[%clk 0:01:26.2]} 22.
Bd2 {[%clk 0:01:23.3]} 22... Re8 {[%clk 0:01:25.8]} 23. Qd1 {[%clk 0:01:23.3]}
23... Kc7 {[%clk 0:01:23.1]} 24. Bf3 {[%clk 0:01:22.4]} 24... Be6 {[%clk
0:01:18.5]} 25. b4 {[%clk 0:01:17.9]} 25... Bd6 {[%clk 0:01:18.4]} 26. g3 {[%clk
0:01:15]} 26... Kb8 {[%clk 0:01:16.5]} 27. Re1 {[%clk 0:01:15.1]} 27... Nd4
{[%clk 0:01:15]} 28. Bg2 {[%clk 0:01:14.1]} 28... Nc2 {[%clk 0:01:14.9]} 29. Re2
{[%clk 0:01:08.1]} 29... Bg4 {[%clk 0:01:14.4]} 30. Bf1 {[%clk 0:00:58.2]} 30...
Nd4 {[%clk 0:01:04]} 31. Be3 {[%clk 0:00:43.4]} 31... Rxe3 {[%clk 0:00:21]} 32.
Qxd4 {[%clk 0:00:38.6]} 32... Rxe2 {[%clk 0:00:21.1]} 33. Bxe2 {[%clk
0:00:33.5]} 33... Bxe2 {[%clk 0:00:22]} 34. Qxd5 {[%clk 0:00:33.8]} 34... Bxb4
{[%clk 0:00:21.7]} 35. Qe4 {[%clk 0:00:28.7]} 35... Bc4 {[%clk 0:00:16.2]} 36.
h4 {[%clk 0:00:24.7]} 36... h5 {[%clk 0:00:15.9]} 37. a4 {[%clk 0:00:20]} 37...
a5 {[%clk 0:00:16]} 38. Qg6 {[%clk 0:00:18.7]} 38... Bd5+ {[%clk 0:00:15.6]} 39.
Kh2 {[%clk 0:00:19]} 39... Rc1 {[%clk 0:00:15.6]} 40. Qe8+ {[%clk 0:00:15.1]}
40... Kc7 {[%clk 0:00:14.9]} 41. g4 {[%clk 0:00:12.2]} 41... Rh1+ {[%clk
0:00:15.2]} 42. Kg3 {[%clk 0:00:12.1]} 42... Be1+ {[%clk 0:00:15.3]} 43. Qxe1
{[%clk 0:00:08.4]} 43... Rxe1 {[%clk 0:00:16.2]} 44. gxh5 {[%clk 0:00:09.3]}
44... Rg1+ {[%clk 0:00:16.4]} 45. Kf2 {[%clk 0:00:08.2]} 45... Rg4 {[%clk
0:00:16.6]} 0-1

[Event "Early-Titled-Tuesday-Blitz-September-26-2023"]
[Site "Chess.com"]
[Date "2023.09.26"]
[Round "3"]
[White "FlemingA"]
[Black "Let_it_be_1"]
[Result "1-0"]
[WhiteElo "2451"]
[BlackElo "2614"]
[TimeControl "180+1"]
[EndTime "8:28:45 PDT"]
[Termination "FlemingA won on time"]

1. g3 {[%clk 0:02:54.9]} 1... d5 {[%clk 0:02:59.9]} 2. Bg2 {[%clk 0:02:53.9]}
2... e6 {[%clk 0:03:00.6]} 3. Nf3 {[%clk 0:02:53.7]} 3... Nf6 {[%clk 0:03:01.2]}
4. d3 {[%clk 0:02:54.2]} 4... Nc6 {[%clk 0:02:56.3]} 5. O-O {[%clk 0:02:52.6]}
5... Bc5 {[%clk 0:02:56]} 6. d4 {[%clk 0:02:45.8]} 6... Bd6 {[%clk 0:02:55.1]}
7. Nbd2 {[%clk 0:02:21]} 7... O-O {[%clk 0:02:54.2]} 8. c3 {[%clk 0:02:18.9]}
8... e5 {[%clk 0:02:43.3]} 9. dxe5 {[%clk 0:02:16.6]} 9... Nxe5 {[%clk
0:02:43.6]} 10. Nxe5 {[%clk 0:02:15.6]} 10... Bxe5 {[%clk 0:02:43.9]} 11. Nf3
{[%clk 0:02:16.5]} 11... Bd6 {[%clk 0:02:43.8]} 12. Bg5 {[%clk 0:02:17.1]} 12...
c6 {[%clk 0:02:41.4]} 13. Qd4 {[%clk 0:02:11.1]} 13... Be7 {[%clk 0:02:40.3]}
14. Rad1 {[%clk 0:02:03.6]} 14... Bf5 {[%clk 0:02:35.1]} 15. c4 {[%clk
0:01:59.1]} 15... h6 {[%clk 0:02:22.4]} 16. Bf4 {[%clk 0:01:53.6]} 16... Qa5
{[%clk 0:02:02.2]} 17. a3 {[%clk 0:01:30]} 17... Be4 {[%clk 0:01:44.8]} 18. cxd5
{[%clk 0:01:04.5]} 18... Bxd5 {[%clk 0:01:42.8]} 19. Bd2 {[%clk 0:00:55.9]}
19... Qa6 {[%clk 0:01:38.3]} 20. Rfe1 {[%clk 0:00:51.3]} 20... Rad8 {[%clk
0:01:36.3]} 21. Qc3 {[%clk 0:00:49.8]} 21... Ne4 {[%clk 0:01:33.6]} 22. Qc1
{[%clk 0:00:48.2]} 22... Nxd2 {[%clk 0:01:25.4]} 23. Rxd2 {[%clk 0:00:47.5]}
23... Bf6 {[%clk 0:01:18.5]} 24. e4 {[%clk 0:00:35.2]} 24... Bc4 {[%clk
0:01:07.4]} 25. e5 {[%clk 0:00:34.8]} 25... Be7 {[%clk 0:01:03.3]} 26. Red1
{[%clk 0:00:22.3]} 26... Rxd2 {[%clk 0:00:59.7]} 27. Rxd2 {[%clk 0:00:23.2]}
27... Bd5 {[%clk 0:00:45]} 28. Qc3 {[%clk 0:00:19.3]} 28... Qb6 {[%clk
0:00:40.7]} 29. h4 {[%clk 0:00:17.5]} 29... a5 {[%clk 0:00:36.9]} 30. Re2 {[%clk
0:00:11.5]} 30... Bc5 {[%clk 0:00:34.2]} 31. Qd3 {[%clk 0:00:09.1]} 31... Rd8
{[%clk 0:00:29]} 32. Qf5 {[%clk 0:00:09.1]} 32... Be6 {[%clk 0:00:25.2]} 33. Qc2
{[%clk 0:00:09.7]} 33... Bb3 {[%clk 0:00:23.7]} 34. Qf5 {[%clk 0:00:04.3]} 34...
Rd1+ {[%clk 0:00:21.1]} 35. Kh2 {[%clk 0:00:04.9]} 35... Be6 {[%clk 0:00:19.8]}
36. Qc2 {[%clk 0:00:04]} 36... Rd8 {[%clk 0:00:17.1]} 37. Kg1 {[%clk 0:00:02.6]}
37... Qb3 {[%clk 0:00:13.5]} 38. Qxb3 {[%clk 0:00:02.8]} 38... Bxb3 {[%clk
0:00:13.8]} 39. Rd2 {[%clk 0:00:03.6]} 39... Bd5 {[%clk 0:00:11]} 40. Ne1 {[%clk
0:00:03]} 40... Kf8 {[%clk 0:00:07.4]} 41. Bxd5 {[%clk 0:00:03.7]} 41... cxd5
{[%clk 0:00:07.3]} 42. Kf1 {[%clk 0:00:03.8]} 42... Ke7 {[%clk 0:00:07.1]} 43.
f4 {[%clk 0:00:04.2]} 43... g5 {[%clk 0:00:06.8]} 44. hxg5 {[%clk 0:00:04.2]}
44... hxg5 {[%clk 0:00:06.9]} 45. Nd3 {[%clk 0:00:04.7]} 45... Be3 {[%clk
0:00:04.9]} 46. Rc2 {[%clk 0:00:05.4]} 46... gxf4 {[%clk 0:00:03.5]} 47. gxf4
{[%clk 0:00:06.3]} 47... Kd7 {[%clk 0:00:02.3]} 48. Ke2 {[%clk 0:00:06.8]} 1-0

[Event "Early-Titled-Tuesday-Blitz-September-26-2023"]
[Site "Chess.com"]
[Date "2023.09.26"]
[Round "3"]
[White "Sattarov_Bobur"]
[Black "crazyluzhinTh3"]
[Result "1-0"]
[WhiteElo "2838"]
[BlackElo "2509"]
[TimeControl "180+1"]
[EndTime "8:28:46 PDT"]
[Termination "Sattarov_Bobur won by resignation"]

1. e4 {[%clk 0:02:57.7]} 1... d6 {[%clk 0:03:00.3]} 2. d4 {[%clk 0:02:56.7]}
2... Nf6 {[%clk 0:03:01]} 3. Nc3 {[%clk 0:02:56.8]} 3... g6 {[%clk 0:03:01.5]}
4. f4 {[%clk 0:02:56.7]} 4... Bg7 {[%clk 0:03:01.4]} 5. Nf3 {[%clk 0:02:56.7]}
5... O-O {[%clk 0:03:02]} 6. e5 {[%clk 0:02:57.1]} 6... dxe5 {[%clk 0:03:02.6]}
7. fxe5 {[%clk 0:02:56.4]} 7... Nd5 {[%clk 0:03:01.6]} 8. Na4 {[%clk 0:02:56.4]}
8... Nb6 {[%clk 0:02:59.3]} 9. Nc5 {[%clk 0:02:56.3]} 9... N8d7 {[%clk
0:02:59.1]} 10. Nb3 {[%clk 0:02:53.6]} 10... a5 {[%clk 0:02:52.4]} 11. a4 {[%clk
0:02:52.7]} 11... c6 {[%clk 0:02:52.6]} 12. Bd3 {[%clk 0:02:41.3]} 12... Nd5
{[%clk 0:02:52.2]} 13. O-O {[%clk 0:02:39.5]} 13... Nb4 {[%clk 0:02:48.8]} 14.
Be2 {[%clk 0:02:36.1]} 14... Nb6 {[%clk 0:02:44]} 15. c3 {[%clk 0:02:34.8]}
15... N4d5 {[%clk 0:02:44]} 16. Bg5 {[%clk 0:02:34.7]} 16... f6 {[%clk
0:02:43.8]} 17. exf6 {[%clk 0:02:33.2]} 17... exf6 {[%clk 0:02:44.7]} 18. Bd2
{[%clk 0:02:33.1]} 18... Re8 {[%clk 0:02:44.6]} 19. Nc5 {[%clk 0:02:30.8]} 19...
Ne3 {[%clk 0:02:40.9]} 20. Bxe3 {[%clk 0:02:30.6]} 20... Rxe3 {[%clk 0:02:41.8]}
21. Qd2 {[%clk 0:02:28.7]} 21... Re7 {[%clk 0:02:29.1]} 22. Rae1 {[%clk
0:02:26.4]} 22... Nd5 {[%clk 0:01:55.4]} 23. Bc4 {[%clk 0:02:24.2]} 23... b6
{[%clk 0:01:55.8]} 24. Rxe7 {[%clk 0:02:18]} 24... Qxe7 {[%clk 0:01:56.7]} 25.
Re1 {[%clk 0:02:18.1]} 25... Qf7 {[%clk 0:01:57]} 26. Ne4 {[%clk 0:02:16.8]}
26... Qc7 {[%clk 0:01:48.2]} 27. h3 {[%clk 0:02:07.9]} 27... Bd7 {[%clk
0:01:46.9]} 28. Nf2 {[%clk 0:01:52.9]} 28... Re8 {[%clk 0:01:42.4]} 29. Nd3
{[%clk 0:01:51.7]} 29... Kf8 {[%clk 0:01:23.8]} 30. Bb3 {[%clk 0:01:24.1]} 30...
Rxe1+ {[%clk 0:01:16.4]} 31. Qxe1 {[%clk 0:01:22.5]} 31... Nf4 {[%clk
0:01:01.5]} 32. Qe4 {[%clk 0:01:12.6]} 32... Nxd3 {[%clk 0:00:56]} 33. Qxd3
{[%clk 0:01:13.5]} 33... b5 {[%clk 0:00:31]} 34. Qe4 {[%clk 0:01:06.5]} 34...
Qd6 {[%clk 0:00:27.6]} 35. axb5 {[%clk 0:01:04]} 35... cxb5 {[%clk 0:00:26]} 36.
Qa8+ {[%clk 0:01:03.8]} 36... Ke7 {[%clk 0:00:26.6]} 37. Qxa5 {[%clk 0:01:02.4]}
37... g5 {[%clk 0:00:27]} 38. Qa7 {[%clk 0:00:57.6]} 38... h5 {[%clk 0:00:23.8]}
39. Nd2 {[%clk 0:00:53.2]} 39... f5 {[%clk 0:00:20.5]} 40. Qb7 {[%clk 0:00:47]}
40... g4 {[%clk 0:00:19.1]} 41. hxg4 {[%clk 0:00:45]} 41... hxg4 {[%clk
0:00:20]} 42. Nf1 {[%clk 0:00:36.7]} 42... Bh6 {[%clk 0:00:19.6]} 43. Bc2 {[%clk
0:00:29.8]} 43... Kf6 {[%clk 0:00:19.2]} 44. Qa8 {[%clk 0:00:13.7]} 44... Kg7
{[%clk 0:00:19.4]} 45. Qd8 {[%clk 0:00:13.3]} 45... Bc1 {[%clk 0:00:16.6]} 46.
Bxf5 {[%clk 0:00:12]} 46... Qf4 {[%clk 0:00:10.6]} 47. Qxd7+ {[%clk 0:00:11.4]}
47... Kf6 {[%clk 0:00:10.7]} 48. Qe6+ {[%clk 0:00:11.7]} 48... Kg5 {[%clk
0:00:10.8]} 49. Qg6+ {[%clk 0:00:12.6]} 49... Kh4 {[%clk 0:00:10.9]} 50. g3+
{[%clk 0:00:12.8]} 50... Qxg3+ {[%clk 0:00:11.8]} 51. Nxg3 {[%clk 0:00:12.9]}
1-0

[Event "Early-Titled-Tuesday-Blitz-September-26-2023"]
[Site "Chess.com"]
[Date "2023.09.26"]
[Round "3"]
[White "LUISMIGUELOV"]
[Black "Chaos_Magic"]
[Result "0-1"]
[WhiteElo "2138"]
[BlackElo "2424"]
[TimeControl "180+1"]
[EndTime "8:28:47 PDT"]
[Termination "Chaos_Magic won on time"]

1. d4 {[%clk 0:02:53.9]} 1... Nf6 {[%clk 0:02:59.6]} 2. c3 {[%clk 0:02:48.7]}
2... d5 {[%clk 0:02:56.6]} 3. Bf4 {[%clk 0:02:44.6]} 3... Bf5 {[%clk 0:02:56.3]}
4. Nd2 {[%clk 0:02:43.9]} 4... c6 {[%clk 0:02:56.1]} 5. Qb3 {[%clk 0:02:43.8]}
5... Qb6 {[%clk 0:02:55.1]} 6. e3 {[%clk 0:02:43.7]} 6... e6 {[%clk 0:02:51.7]}
7. Ngf3 {[%clk 0:02:42.8]} 7... h6 {[%clk 0:02:51.6]} 8. Qxb6 {[%clk 0:02:36.1]}
8... axb6 {[%clk 0:02:51.2]} 9. Bxb8 {[%clk 0:02:36.6]} 9... Rxb8 {[%clk
0:02:51]} 10. a3 {[%clk 0:02:35.7]} 10... b5 {[%clk 0:02:48.9]} 11. Ne5 {[%clk
0:02:35.5]} 11... Bd6 {[%clk 0:02:46.7]} 12. f4 {[%clk 0:02:34]} 12... Nd7
{[%clk 0:02:39.3]} 13. Be2 {[%clk 0:02:26.2]} 13... Nb6 {[%clk 0:02:37.2]} 14.
Bd1 {[%clk 0:02:17]} 14... f6 {[%clk 0:02:29.7]} 15. Nef3 {[%clk 0:02:12.6]}
15... g5 {[%clk 0:02:24.7]} 16. g3 {[%clk 0:02:07.9]} 16... Kd7 {[%clk
0:02:17.5]} 17. Kf2 {[%clk 0:02:04.5]} 17... Rhf8 {[%clk 0:02:12.6]} 18. Rg1
{[%clk 0:02:01.7]} 18... Bh7 {[%clk 0:02:09.2]} 19. Bb3 {[%clk 0:01:58]} 19...
e5 {[%clk 0:02:01.1]} 20. fxe5 {[%clk 0:01:15.7]} 20... fxe5 {[%clk 0:01:58.8]}
21. Ke2 {[%clk 0:01:10.4]} 21... exd4 {[%clk 0:01:30.2]} 22. Nxd4 {[%clk
0:01:03.5]} 22... Nc4 {[%clk 0:01:16.6]} 23. Bxc4 {[%clk 0:01:02.4]} 23... bxc4
{[%clk 0:01:14.4]} 24. Raf1 {[%clk 0:01:02.6]} 24... Bd3+ {[%clk 0:01:13.6]} 25.
Ke1 {[%clk 0:01:00.5]} 25... Bxf1 {[%clk 0:01:12.8]} 26. Rxf1 {[%clk 0:00:59.6]}
26... Rxf1+ {[%clk 0:01:12.3]} 27. Kxf1 {[%clk 0:00:58.7]} 27... Re8 {[%clk
0:01:09.2]} 28. Ke2 {[%clk 0:00:54.7]} 28... g4 {[%clk 0:00:58.3]} 29. Nf5
{[%clk 0:00:51.9]} 29... Bf8 {[%clk 0:00:58.3]} 30. a4 {[%clk 0:00:41.6]} 30...
Re5 {[%clk 0:00:57.4]} 31. Nd4 {[%clk 0:00:40.5]} 31... h5 {[%clk 0:00:55.8]}
32. Nb1 {[%clk 0:00:38.2]} 32... Bh6 {[%clk 0:00:54.2]} 33. Nc2 {[%clk
0:00:36.6]} 33... Kc7 {[%clk 0:00:50.7]} 34. Nba3 {[%clk 0:00:36.3]} 34... Kb6
{[%clk 0:00:50.2]} 35. Nb1 {[%clk 0:00:31.3]} 35... Ka5 {[%clk 0:00:49.4]} 36.
Nd2 {[%clk 0:00:29.6]} 36... Kxa4 {[%clk 0:00:48.9]} 37. Kf2 {[%clk 0:00:24.8]}
37... Ka5 {[%clk 0:00:47.1]} 38. Ke2 {[%clk 0:00:23.1]} 38... Kb6 {[%clk
0:00:47]} 39. Nb1 {[%clk 0:00:21.9]} 39... Kc7 {[%clk 0:00:46.3]} 40. Nba3
{[%clk 0:00:22.4]} 40... b5 {[%clk 0:00:46.5]} 41. Nb1 {[%clk 0:00:21.5]} 41...
Kb6 {[%clk 0:00:46.8]} 42. Nd2 {[%clk 0:00:21.3]} 42... c5 {[%clk 0:00:46.6]}
43. Nf1 {[%clk 0:00:20.4]} 43... Ka5 {[%clk 0:00:45.6]} 44. Nd2 {[%clk
0:00:16.4]} 44... b4 {[%clk 0:00:45]} 45. Nf1 {[%clk 0:00:12.8]} 45... Ka4
{[%clk 0:00:29.7]} 46. Nd2 {[%clk 0:00:11.6]} 46... b3 {[%clk 0:00:27.9]} 47.
Ne1 {[%clk 0:00:09.7]} 47... Rxe3+ {[%clk 0:00:25.9]} 48. Kf2 {[%clk 0:00:07.8]}
48... Kb5 {[%clk 0:00:23.4]} 49. Nf1 {[%clk 0:00:07.4]} 49... Re6 {[%clk
0:00:21.1]} 50. Ng2 {[%clk 0:00:07.4]} 50... d4 {[%clk 0:00:19.9]} 51. cxd4
{[%clk 0:00:06.5]} 51... cxd4 {[%clk 0:00:20.2]} 52. Nf4 {[%clk 0:00:05.1]}
52... Bxf4 {[%clk 0:00:19.9]} 53. gxf4 {[%clk 0:00:04.9]} 53... c3 {[%clk
0:00:20.1]} 0-1